bitfinex-derivatives/quotes_BNBF0:USTF0_20241230
["timestamp","ask_amount","ask_price","bid_price","bid_amount"]
[1735528854238,0.28643446,698.24,697.33,1.86558254]
[1735528854443,0.28643446,698.24,697.27,1.07450111]
[1735528854644,0.28643446,698.24,697.28,2.67994501]
[1735528854844,0.28643446,698.24,697.29,3.48091236]
[1735528855240,0.28643446,698.24,697.3,3.48091236]
[1735528855443,0.28643446,698.24,697.31,3.48091236]
[1735528855643,0.28643446,698.24,697.32,3.48091236]
[1735528855947,0.28643446,698.24,697.33,4.55541347]
[1735528856146,0.28643446,698.24,697.34,3.48091236]
[1735528857140,0.28643446,698.24,697.35,3.48091236]
[1735528857446,0.28643446,698.24,697.36,1.86558254]
[1735528857742,0.28643446,698.24,697.32,1.07450111]
[1735528857743,0.28643446,698.24,697.33,1.86558254]
[1735528858149,0.28643446,698.24,697.3,1.07450111]
[1735528860145,0.28643446,698.24,697.29,1.07450111]
[1735528860347,0.28643446,698.24,697.29,4.55379458]
[1735528860542,0.28643446,698.24,697.3,3.47929347]
[1735528860746,0.28643446,698.24,697.3,6.15575005]
[1735528860947,0.28643446,698.24,697.31,6.15575005]
[1735528861249,0.28643446,698.24,697.38,1.07450111]
[1735528862349,0.28643446,698.24,697.4,1.07450111]
[1735528863350,0.28643446,698.24,696.64,1.07450111]
[1735528864449,0.28643446,698.24,696.65,1.07450111]
[1735528865850,0.28643446,698.24,696.49,4.53902047]
[1735528865851,0.28643446,698.24,696.69,1.07450111]
[1735528866050,0.28643446,698.24,696.71,0.28706348]
[1735528866850,0.28643446,698.24,697.02,1.07450111]
[1735528868152,0.28643446,698.24,697.05,1.07450111]
[1735528868955,0.28643446,698.24,697.34,1.07450111]
[1735528870154,0.28643446,698.24,697.54,1.07450111]
[1735528870951,0.28643446,698.24,697.56,1.07450111]
[1735528872356,0.28643446,698.24,697.63,1.07450111]
[1735528873254,0.28643446,698.24,697.61,1.07450111]
[1735528874459,0.28643446,698.24,697.63,1.07450111]
[1735528875859,0.28643446,698.24,697.64,1.07450111]
[1735528877059,0.28643446,698.24,697.68,1.07450111]
[1735528878059,0.28643446,698.24,697.52,1.07450111]
[1735528878762,0.28643446,698.24,697.53,1.07450111]
[1735528879758,0.28643446,698.24,697.52,1.07450111]
[1735528880958,0.28643446,698.24,697.54,1.07450111]
[1735528882057,0.28643446,698.24,697.51,1.07450111]
[1735528883064,0.28643446,698.24,697.61,1.07450111]
[1735528884064,0.28643446,698.24,697.27,2.19377311]
[1735528884065,0.28643446,698.24,697.59,1.07450111]
[1735528884963,0.28643446,698.24,697.62,1.07450111]
[1735528887166,0.28643446,698.24,697.6,1.07450111]
[1735528888066,0.28643446,698.24,697.49,1.07450111]
[1735528888968,0.28643446,698.24,697.31,1.07450111]
[1735528890662,0.28643446,698.24,697.32,1.07450111]
[1735528891768,0.28643446,698.24,697.33,1.07450111]
[1735528893067,0.28643446,698.24,697.43,1.07450111]
[1735528894271,0.28643446,698.24,697.39,1.07450111]
[1735528895470,0.28643446,698.24,697.38,1.07450111]
[1735528896468,0.28643446,698.24,697.39,1.07450111]
[1735528897673,0.28643446,698.24,697.4,1.07450111]
[1735528898369,0.28643446,698.24,697.54,1.07450111]
[1735528900370,0.28643446,698.24,697.28,1.63078473]
[1735528900371,0.28643446,698.24,697.46,1.07450111]
[1735528901170,0.28643446,698.24,697.45,1.07450111]
[1735528904073,0.28643446,698.24,697.42,1.07450111]
[1735528906470,0.28643446,698.24,689.88,8.56455286]
[1735528906471,0.28643446,698.24,697.38,1.07450111]
[1735528907467,0.28643446,698.24,697.29,1.07450111]
[1735528908869,0.28643446,698.24,697.34,1.07450111]
[1735528910366,0.28643446,698.24,697.33,1.07450111]
[1735528911471,0.28643446,698.24,697.3,1.07450111]
[1735528912572,0.28643446,698.24,697.29,1.07450111]
[1735528913872,0.28643446,698.24,697.3,1.07450111]
[1735528914967,0.28643446,698.24,697.37,1.07450111]
[1735528916369,0.28643446,698.24,697.36,1.07450111]
[1735528917578,0.28643446,698.24,697.48,1.07450111]
[1735528919875,0.28643446,698.24,697.5,1.07450111]
[1735528921171,0.28643446,698.24,697.46,1.07450111]
[1735528922673,0.28643446,698.24,697.38,1.07450111]
[1735528924481,0.28643446,698.24,697.41,1.07450111]
[1735528925482,0.28643446,698.24,697.39,1.07450111]
[1735528926677,0.28643446,698.24,697.4,1.07450111]
[1735528927583,0.28643446,698.24,697.42,1.07450111]
[1735528928787,0.28643446,698.24,697.43,1.07450111]
[1735528930083,0.28643446,698.24,697.39,1.07450111]
[1735528931187,0.28643446,698.24,697.44,1.07450111]
[1735528932387,0.28643446,698.24,697.46,1.07450111]
[1735528933688,0.28643446,698.24,697.25,1.07450111]
[1735528934688,0.28643446,698.24,697.21,1.07450111]
[1735528935888,0.28643446,698.24,697.25,1.07450111]
[1735528936791,0.28643446,698.24,697.23,1.07450111]
[1735528938385,0.28643446,698.24,696.9,1.28940133]
[1735528938386,0.28643446,698.24,697.18,1.07450111]
[1735528939387,0.28643446,698.24,697.01,1.07450111]
[1735528940289,0.28643446,698.24,696.93,1.07450111]
[1735528941593,0.28643446,698.24,696.9,1.07450111]
[1735528942993,0.28643446,698.24,696.91,1.07450111]
[1735528943586,0.28643446,698.24,696.9,1.07450111]
[1735528944586,0.28643446,698.24,696.72,1.87554819]
[1735528944587,0.28643446,698.24,696.88,1.07450111]
[1735528945595,0.28643446,698.24,696.97,1.07450111]
[1735528946696,0.28643446,698.24,697.02,1.07450111]
[1735528948091,0.28643446,698.24,697.03,1.07450111]
[1735528949397,0.28643446,698.24,697.2,1.07450111]
[1735528950598,0.28643446,698.24,697.14,1.07450111]
[1735528951796,0.28643446,698.24,697.18,1.07450111]
[1735528953002,0.28643446,698.24,697.36,1.07450111]
[1735528954001,0.28643446,698.24,697.37,1.07450111]
[1735528955103,0.28643446,698.24,697.36,2.94827624]
[1735528955301,0.28643446,698.24,697.37,1.8726891]
[1735528955696,0.28643446,698.24,697.36,1.07450111]
[1735528956099,0.28643446,698.24,697.33,1.07450111]
[1735528957004,0.28643446,698.24,697.32,1.07450111]
[1735528957902,0.28643446,698.24,697.06,1.07450111]
[1735528958907,0.28643446,698.24,697.05,1.07450111]
[1735528959709,0.28643446,698.24,697.04,1.07450111]
[1735528960712,0.28643446,698.24,697.13,1.07450111]
[1735528961612,0.28643446,698.24,697.11,1.07450111]
[1735528962906,0.28643446,698.24,696.78,1.8739893]
[1735528962907,0.28643446,698.24,697.07,1.07450111]
[1735528963911,0.28643446,698.24,697.05,1.07450111]
[1735528966410,0.28643446,698.24,696.64,1.28940133]
[1735528966411,0.28643446,698.24,697.0,1.07450111]
[1735528967411,0.28643446,698.24,697.14,1.07450111]
[1735528968419,0.28643446,698.24,697.09,1.07450111]
[1735528969218,0.28643446,698.24,697.08,1.07450111]
[1735528969817,0.28643446,698.24,696.97,2.70152152]
[1735528969818,0.28643446,698.24,697.11,1.07450111]
[1735528971420,0.28643446,698.24,697.12,1.07450111]
[1735528972322,0.28643446,698.24,697.16,1.07450111]
[1735528975122,0.28643446,698.24,697.16,4.58022334]
[1735528975319,0.28643446,698.24,697.17,3.50572223]
[1735528975521,0.28643446,698.24,697.17,6.2086505]
[1735528975719,0.28643446,698.24,697.18,3.50572223]
[1735528975923,0.28643446,698.24,697.22,1.07450111]
[1735528976519,0.28643446,698.24,697.22,4.58022334]
[1735528976719,0.28643446,698.24,697.23,6.2086505]
[1735528976920,0.28643446,698.24,697.32,1.07450111]
[1735528977923,0.28643446,698.24,697.34,1.07450111]
[1735528978718,0.28643446,698.24,697.35,1.07450111]
[1735528979417,0.28643446,698.24,697.35,4.58022334]
[1735528979617,0.28643446,698.24,697.36,3.50572223]
[1735528980021,0.28643446,698.24,697.37,1.07450111]
[1735528980323,0.28643446,698.24,697.37,4.58022334]
[1735528980524,0.28643446,698.24,697.38,3.50572223]
[1735528980717,0.28643446,698.24,697.39,2.70401845]
[1735528980919,0.28643446,698.24,697.4,3.50572223]
[1735528981423,0.28643446,698.24,697.49,1.07450111]
[1735528982419,0.28643446,698.24,697.54,1.07450111]
[1735528983825,0.28643446,698.24,697.51,1.87610754]
[1735528983826,0.28643446,698.24,697.55,1.07450111]
[1735528984729,0.28643446,698.24,697.57,1.07450111]
[1735528986030,0.28643446,698.24,697.61,1.07450111]
[1735528986827,0.28643446,698.24,697.62,1.07450111]
[1735528988028,0.28643446,698.24,697.54,1.07450111]
[1735528988029,0.28643446,698.24,697.64,1.07450111]
[1735528990031,0.28643446,698.24,697.63,1.07450111]
[1735528991233,0.28643446,698.24,697.55,1.07450111]
[1735528991827,0.28643446,698.24,697.54,1.07450111]
[1735528994036,0.28643446,698.24,697.5,1.07450111]
[1735528996427,0.28643446,698.24,697.51,1.07450111]
[1735528997638,0.28643446,698.24,697.52,1.07450111]
[1735528998534,0.28643446,698.24,697.14,1.07450111]
[1735528999840,0.28643446,698.24,696.73,1.07450111]
[1735529001441,0.28643446,698.24,696.75,1.07450111]
[1735529002337,0.28643446,698.24,696.7,1.07450111]
[1735529004839,0.28643446,698.24,696.71,1.36156459]
[1735529006042,0.28643446,698.24,696.94,1.07450111]
[1735529006533,0.26378147,698.23,696.94,1.07450111]
[1735529006735,0.28644677,698.21,696.94,1.07450111]
[1735529007241,0.28644677,698.21,696.89,1.07450111]
[1735529008437,0.28644677,698.21,696.82,7.29411855]
[1735529008642,0.28644677,698.21,696.83,3.51233217]
[1735529009543,0.28644677,698.21,696.84,2.70422951]
[1735529009736,0.28644677,698.21,696.85,3.51233217]
[1735529009941,0.28644677,698.21,696.86,2.70422951]
[1735529010142,0.28644677,698.21,696.87,3.51233217]
[1735529010842,0.28644677,698.21,696.88,3.51233217]
[1735529011141,0.28644677,698.21,696.79,1.07450111]
[1735529011142,0.28644677,698.21,696.89,3.50911765]
[1735529011336,0.28644677,698.21,696.89,1.62944149]
[1735529011539,0.28644677,698.21,696.81,2.70252628]
[1735529011738,0.28644677,698.21,696.82,3.50911765]
[1735529011943,0.28644677,698.21,696.83,2.70252628]
[1735529012139,0.28644677,698.21,696.84,3.50911765]
[1735529012343,0.28644677,698.21,696.84,1.87967616]
[1735529012544,0.28644677,698.21,696.79,6.20919821]
[1735529012744,0.28644677,698.21,696.8,3.5080857]
[1735529013144,0.28644677,698.21,696.81,3.5080857]
[1735529013339,0.28644677,698.21,696.82,3.5080857]
[1735529013743,0.28644677,698.21,696.83,6.20871417]
[1735529013943,0.28644677,698.21,696.84,3.5080857]
[1735529014140,0.28644677,698.21,696.85,3.5080857]
[1735529014344,0.28644677,698.21,696.86,3.5080857]
[1735529014545,0.28644677,698.21,696.87,3.5080857]
[1735529014748,0.28644677,698.21,696.88,6.20795536]
[1735529014948,0.28644677,698.21,696.89,3.5080857]
[1735529015446,0.28644677,698.21,696.74,1.07450111]
[1735529015841,0.28644677,698.21,696.76,1.07450111]
[1735529017145,0.28644677,698.21,696.71,0.28706348]
[1735529018041,0.28644677,698.21,696.71,3.78831309]
[1735529018242,0.28644677,698.21,696.72,1.87411738]
[1735529018440,0.28644677,698.21,696.71,0.28706348]
[1735529021850,0.28644677,698.21,696.71,1.36156459]
[1735529022751,0.28644677,698.21,696.71,7.56141189]
[1735529022952,0.28644677,698.21,696.72,3.50113573]
[1735529023751,0.28644677,698.21,696.72,4.57563684]
[1735529023952,0.28644677,698.21,696.73,3.50113573]
[1735529024354,0.28644677,698.21,696.73,1.87411738]
[1735529024948,0.28644677,698.21,696.73,3.50020125]
[1735529025147,0.28644677,698.21,696.74,1.87411738]
[1735529025345,0.28644677,698.21,696.73,3.50020125]
[1735529025751,0.28644677,698.21,696.74,3.77132871]
[1735529026053,0.28644677,698.21,696.75,3.50020125]
[1735529026354,0.28644677,698.21,696.76,2.6968276]
[1735529026550,0.28644677,698.21,696.77,3.50020125]
[1735529026953,0.28644677,698.21,696.88,1.07450111]
[1735529027854,0.28644677,698.21,696.81,1.07450111]
[1735529028855,0.28644677,698.21,696.73,1.07450111]
[1735529029649,0.28644677,698.21,696.76,1.07450111]
[1735529030749,0.28644677,698.21,696.8,1.07450111]
[1735529031750,0.28644677,698.21,696.84,1.07450111]
[1735529032855,0.28644677,698.21,696.88,1.07450111]
[1735529034058,0.28644677,698.21,696.83,1.07450111]
[1735529035059,0.28644677,698.21,696.82,1.07450111]
[1735529036256,0.28644677,698.21,696.71,0.28706348]
[1735529036257,0.28644677,698.21,696.81,1.07450111]
[1735529037361,0.28644677,698.21,696.83,1.07450111]
[1735529038561,0.28644677,698.21,696.71,1.36156459]
[1735529038562,0.28644677,698.21,696.86,1.07450111]
[1735529039261,0.26382569,698.2,696.86,1.07450111]
[1735529039661,1.07012201,698.16,696.8,1.07450111]
[1735529039858,0.26382569,698.15,696.8,1.07450111]
[1735529040657,0.26384778,698.14,696.8,1.07450111]
[1735529040861,0.26384778,698.14,696.71,0.28706348]
[1735529040862,1.07012201,698.06,696.84,1.07450111]
[1735529041970,0.28644677,698.21,696.71,0.28706348]
[1735529041971,1.07012201,698.07,696.81,1.07450111]
[1735529043166,1.07012201,698.07,696.77,1.07450111]
[1735529043866,1.07012201,698.08,696.75,1.07450111]
[1735529044467,0.26385991,698.07,696.75,1.07450111]
[1735529045062,0.26385991,698.07,696.71,0.28706348]
[1735529046472,1.07012201,698.04,696.71,0.28706348]
[1735529046669,0.26385991,698.03,696.71,0.28706348]
[1735529047064,1.07012201,698.04,696.71,0.28706348]
[1735529047269,1.07012201,698.06,696.71,0.28706348]
[1735529047473,0.26388038,698.05,696.71,0.28706348]
[1735529047672,0.26388921,698.04,696.71,0.28706348]
[1735529047872,0.26388921,698.03,696.71,0.28706348]
[1735529048072,1.07012201,698.06,696.71,0.28706348]
[1735529048274,0.26388148,698.05,696.71,0.28706348]
[1735529048870,1.07012201,698.1,696.71,0.28706348]
[1735529049071,0.26387567,698.09,696.71,0.28706348]
[1735529049866,0.26387567,698.08,696.71,0.28706348]
[1735529050067,1.07012201,698.14,696.71,0.28706348]
[1735529050267,0.26387651,698.13,696.71,0.28706348]
[1735529050870,0.26387651,698.12,696.71,0.28706348]
[1735529051071,0.26387651,698.11,696.71,0.28706348]
[1735529051273,0.26387651,698.1,696.71,0.28706348]
[1735529051572,0.26388192,698.09,696.71,0.28706348]
[1735529051772,1.07012201,698.2,696.71,0.28706348]
[1735529051968,0.2638763,698.19,696.71,0.28706348]
[1735529053270,1.07012201,698.16,696.71,0.28706348]
[1735529053575,0.2638763,698.15,696.71,0.28706348]
[1735529055375,0.26392372,698.14,696.71,0.28706348]
[1735529055576,0.26392372,698.13,696.71,0.28706348]
[1735529055777,0.26392372,698.12,696.71,0.28706348]
[1735529055977,0.26392372,698.11,696.71,0.28706348]
[1735529056177,0.26392372,698.1,696.71,0.28706348]
[1735529056377,0.26392372,698.09,696.71,0.28706348]
[1735529056677,0.26392372,698.08,696.71,0.28706348]
[1735529056880,0.26392372,698.07,696.71,0.28706348]
[1735529057073,0.26392372,698.06,696.71,0.28706348]
[1735529057277,0.26392372,698.05,696.71,0.28706348]
[1735529057477,0.26392372,698.04,696.71,0.28706348]
[1735529057677,0.26392372,698.03,696.71,0.28706348]
[1735529057878,0.26392372,698.02,696.71,0.28706348]
[1735529058179,0.26392372,698.01,696.71,0.28706348]
[1735529058478,0.26392372,698.0,696.71,0.28706348]
[1735529058678,0.26392372,697.99,696.71,0.28706348]
[1735529058877,0.28644677,698.21,696.71,0.28706348]
[1735529058878,0.26392372,697.98,696.71,0.28706348]
[1735529059072,0.26392372,697.97,696.71,0.28706348]
[1735529059275,0.26392372,697.96,696.71,0.28706348]
[1735529059475,0.28644677,698.21,696.71,0.28706348]
[1735529059677,0.26396229,698.2,696.71,0.28706348]
[1735529060377,0.28644677,698.21,696.71,0.28706348]
[1735529060570,0.26396345,698.2,696.71,0.28706348]
[1735529062976,0.26400964,698.19,696.71,0.28706348]
[1735529063180,0.26400964,698.18,696.71,0.28706348]
[1735529063372,0.26400964,698.17,696.71,0.28706348]
[1735529063579,0.26400964,698.16,696.71,0.28706348]
[1735529063780,0.26400964,698.15,696.71,0.28706348]
[1735529064078,0.26400964,698.14,696.71,0.28706348]
[1735529064281,0.26400964,698.13,696.71,0.28706348]
[1735529064581,0.26400964,698.12,696.71,0.28706348]
[1735529064782,0.26400964,698.11,696.71,0.28706348]
[1735529064985,0.26400964,698.1,696.71,0.28706348]
[1735529066181,0.28644677,698.21,696.71,0.28706348]
[1735529066182,0.26400964,698.09,696.71,0.28706348]
[1735529066376,0.26400964,698.08,696.71,0.28706348]
[1735529066581,0.26400964,698.07,696.71,0.28706348]
[1735529066780,0.26400964,698.06,696.71,0.28706348]
[1735529066981,0.26400964,698.05,696.71,0.28706348]
[1735529067176,0.26400964,698.04,696.71,0.28706348]
[1735529067376,0.26400964,698.03,696.71,0.28706348]
[1735529067578,0.26400964,698.02,696.71,0.28706348]
[1735529067780,0.26400964,698.01,696.71,0.28706348]
[1735529067979,0.26400964,698.2,696.71,0.28706348]
[1735529068180,0.26400964,698.19,695.78,1.06864321]
[1735529068382,0.26400964,698.18,695.78,1.06864321]
[1735529068684,0.62093246,698.73,695.75,1.06864321]
[1735529068685,0.26400964,698.17,695.75,1.06864321]
[1735529068883,0.26400964,698.16,695.75,1.06864321]
[1735529069086,0.26400964,698.15,695.75,1.06864321]
[1735529069379,1.06522021,698.65,695.35,2.69763872]
[1735529069380,0.26400964,698.14,695.76,1.06864321]
[1735529069584,0.26400964,698.13,695.76,1.06864321]
[1735529069778,0.26400964,698.12,695.76,1.06864321]
[1735529069984,0.26400964,698.11,695.76,1.06864321]
[1735529070285,0.26400964,698.1,695.78,1.06864321]
[1735529070478,0.26400964,698.19,695.78,1.06864321]
[1735529070682,0.26398672,698.18,695.78,1.06864321]
[1735529070883,0.26398672,698.17,695.78,1.06864321]
[1735529071186,0.26398672,698.16,695.8,1.06864321]
[1735529071382,0.26398672,698.15,695.8,1.06864321]
[1735529071582,0.26398672,698.14,695.8,1.06864321]
[1735529071784,0.26398672,698.13,695.8,1.06864321]
[1735529071984,0.26398672,698.12,695.83,1.06864321]
[1735529072177,0.26398672,698.11,695.83,1.06864321]
[1735529072382,0.26398672,698.1,695.83,1.06864321]
[1735529072678,0.26398672,698.09,695.83,1.06864321]
[1735529072881,0.26398672,698.08,695.83,1.06864321]
[1735529073082,1.06522021,698.15,695.8,1.06864321]
[1735529073384,0.26400066,698.14,695.8,1.06864321]
[1735529074180,1.06522021,698.11,695.84,1.06864321]
[1735529074378,0.26400066,698.1,695.84,1.06864321]
[1735529075181,1.32922087,698.1,695.85,1.06864321]
[1735529075381,0.26400066,698.09,695.85,1.06864321]
[1735529075683,0.26398766,698.08,695.85,1.06864321]
[1735529075883,0.26398766,698.07,695.85,1.06864321]
[1735529076080,0.26398766,698.06,695.85,1.06864321]
[1735529076281,0.26398598,698.05,695.85,1.06864321]
[1735529076480,1.32920619,698.04,695.99,1.06864321]
[1735529076683,0.26398598,698.03,695.99,1.06864321]
[1735529077683,1.32920619,698.03,696.01,1.06864321]
[1735529077886,0.26398598,698.02,696.01,1.06864321]
[1735529078582,0.26398622,698.01,696.01,1.06864321]
[1735529078787,0.26398622,698.0,696.01,1.06864321]
[1735529078988,0.26398622,698.0,695.66,1.28237186]
[1735529078989,0.26398622,697.99,696.12,1.06864321]
[1735529079188,1.06522021,697.96,696.12,1.06864321]
[1735529079487,0.26398622,697.95,696.12,1.06864321]
[1735529080088,0.26398622,697.95,695.86,3.50013226]
[1735529080089,1.06522021,697.86,696.2,1.06864321]
[1735529080386,0.26398622,697.85,696.2,1.06864321]
[1735529081287,1.06522021,697.82,696.18,1.06864321]
[1735529081589,0.26398622,697.81,696.18,1.06864321]
[1735529081789,1.06522021,697.82,696.18,1.06864321]
[1735529082188,1.06522021,697.82,696.08,1.06864321]
[1735529082189,1.06522021,697.93,696.11,1.06864321]
[1735529082490,0.26398386,697.92,696.11,1.06864321]
[1735529083292,1.32920407,697.92,696.14,1.06864321]
[1735529083590,0.26398349,697.91,696.14,1.06864321]
[1735529084184,1.06522021,697.9,696.17,1.06864321]
[1735529085496,1.06522021,698.01,696.11,1.06864321]
[1735529086591,1.06522021,698.01,695.54,2.18181323]
[1735529086592,1.06522021,698.01,696.19,1.06864321]
[1735529086787,1.06522021,698.0,696.19,1.06864321]
[1735529087695,1.06522021,697.99,696.26,1.06864321]
[1735529088195,0.26393353,697.98,696.26,1.06864321]
[1735529088694,1.06522021,697.96,696.31,1.06864321]
[1735529088897,0.26391712,697.95,696.31,1.06864321]
[1735529089895,1.06522021,697.85,696.67,1.06864321]
[1735529090700,1.06522021,697.86,696.61,1.06864321]
[1735529091898,1.06522021,698.05,694.62,2.53230766]
[1735529091899,1.06522021,697.87,696.67,1.06864321]
[1735529092995,1.06522021,697.91,696.62,1.06864321]
[1735529093195,0.26392397,697.9,696.62,1.06864321]
[1735529093597,1.06522021,697.91,696.62,1.06864321]
[1735529094095,1.06522021,697.93,696.59,1.06864321]
[1735529095298,1.06522021,698.05,696.38,1.06864321]
[1735529096297,1.06522021,698.07,696.38,1.06864321]
[1735529096495,0.28651242,698.05,696.38,1.06864321]
[1735529097401,0.28651242,698.05,696.36,1.06864321]
[1735529098700,0.28651242,698.05,688.88,5.13911281]
[1735529098701,0.28651242,698.05,696.39,1.06864321]
[1735529101802,0.28651242,698.05,696.37,1.06864321]
[1735529102802,0.28651242,698.05,696.38,1.06864321]
[1735529103702,0.28651242,698.05,696.18,2.70729595]
[1735529103703,0.28651242,698.05,696.39,1.06864321]
[1735529104503,0.28651242,698.05,696.53,1.06864321]
[1735529105801,0.28651242,698.05,696.67,1.06864321]
[1735529106803,0.28651242,698.05,696.65,1.06864321]
[1735529108803,0.28651242,698.05,696.64,1.06864321]
[1735529109802,0.28651242,698.05,696.62,1.06864321]
[1735529110705,0.28651242,698.05,696.61,1.87987098]
[1735529110904,0.28651242,698.05,696.6,1.06864321]
[1735529112813,0.28651242,698.05,696.68,1.06864321]
[1735529115212,0.28651242,698.05,696.63,1.06864321]
[1735529116507,0.28651242,698.05,696.61,1.06864321]
[1735529116909,0.28651242,698.05,696.61,2.94851419]
[1735529117108,0.28651242,698.05,696.61,1.06864321]
[1735529117514,0.28651242,698.05,696.63,1.06864321]
[1735529118916,0.27135258,698.05,696.62,1.06864321]
[1735529120014,0.27135258,698.05,696.61,1.06864321]
[1735529121322,0.27135258,698.05,696.62,1.06864321]
[1735529122520,0.27135258,698.05,696.63,1.06864321]
[1735529123925,0.27135258,698.05,696.62,1.06864321]
[1735529125022,0.27135258,698.05,696.64,1.06864321]
[1735529126021,0.27135258,698.05,696.63,1.06864321]
[1735529127022,0.27135258,698.05,696.62,1.06864321]
[1735529128528,0.27135258,698.05,696.57,1.06864321]
[1735529129827,0.27135258,698.05,696.09,2.18181323]
[1735529129828,0.27135258,698.05,696.59,1.06864321]
[1735529130931,0.27135258,698.05,696.61,1.06864321]
[1735529132126,0.27135258,698.05,696.67,1.06864321]
[1735529132924,0.27135258,698.05,696.89,1.06864321]
[1735529133934,0.27135258,698.05,696.88,1.06864321]
[1735529134929,0.27135258,698.05,696.91,1.06864321]
[1735529136235,0.27135258,698.05,696.98,1.06864321]
[1735529137232,0.27135258,698.05,696.94,1.06864321]
[1735529138531,0.27135258,698.05,697.01,1.06864321]
[1735529139638,0.27135258,698.05,696.95,1.06864321]
[1735529140635,0.27135258,698.05,696.59,2.18181323]
[1735529140636,0.27135258,698.05,696.94,1.06864321]
[1735529141639,0.27135258,698.05,696.97,1.06864321]
[1735529142435,0.27135258,698.05,696.88,1.06864321]
[1735529142436,0.27135258,698.05,696.99,1.06864321]
[1735529143738,0.27135258,698.05,697.0,1.06864321]
[1735529145344,0.27135258,698.05,696.98,1.06864321]
[1735529147546,0.27135258,698.05,697.0,1.06864321]
[1735529148746,0.27135258,698.05,697.02,1.06864321]
[1735529152047,0.27135258,698.05,697.01,1.06864321]
[1735529154252,0.27135258,698.05,696.62,2.18181323]
[1735529154253,0.27135258,698.05,696.98,1.06864321]
[1735529156554,0.27135258,698.05,697.04,1.06864321]
[1735529157549,0.27135258,698.05,697.05,1.06864321]
[1735529160256,0.27135258,698.05,696.75,1.06864321]
[1735529161190,0.27135258,698.05,696.26,2.18181323]
[1735529161191,0.27135258,698.05,696.73,1.06864321]
[1735529162274,0.27135258,698.05,696.69,1.06864321]
[1735529163377,0.27135258,698.05,696.68,1.06864321]
[1735529164376,0.27135258,698.05,696.67,1.06864321]
[1735529165872,0.27135258,698.05,696.65,1.06864321]
[1735529166862,0.27135258,698.05,696.62,1.06864321]
[1735529167758,0.27135258,698.05,696.59,1.06864321]
[1735529168851,0.27135258,698.05,696.26,1.28237186]
[1735529168852,0.27135258,698.05,696.54,1.06864321]
[1735529169953,0.27135258,698.05,696.48,1.06864321]
[1735529170759,0.2639073,698.04,696.48,1.06864321]
[1735529170961,0.28652474,698.02,696.44,1.06864321]
[1735529171160,0.2639073,698.01,696.44,1.06864321]
[1735529171361,0.28653705,697.99,696.44,1.06864321]
[1735529171661,0.26391427,697.98,696.44,1.06864321]
[1735529172456,0.26391427,697.98,696.1,1.28237186]
[1735529172457,0.26391427,697.98,696.48,1.06864321]
[1735529172657,0.28654937,697.96,696.48,1.06864321]
[1735529173557,0.28654937,697.96,696.45,1.06864321]
[1735529174263,0.26392468,697.95,696.45,1.06864321]
[1735529174463,0.28656168,697.93,696.44,1.88092479]
[1735529174957,0.28656168,697.93,696.43,1.06864321]
[1735529175357,0.26393028,697.92,696.43,1.06864321]
[1735529175664,0.286574,697.9,696.4,1.06864321]
[1735529176862,0.286574,697.9,696.34,1.06864321]
[1735529177569,0.286574,697.9,695.99,1.06864321]
[1735529178869,0.286574,697.9,695.93,1.06864321]
[1735529181372,0.286574,697.9,695.86,1.06864321]
[1735529182473,0.286574,697.9,695.9,1.06864321]
[1735529184291,0.286574,697.9,695.89,1.06864321]
[1735529185193,0.286574,697.9,695.97,1.06864321]
[1735529186591,0.26398239,697.89,695.97,1.06864321]
[1735529186782,0.28658632,697.87,695.97,1.06864321]
[1735529186989,0.2639796,697.86,695.97,1.06864321]
[1735529187185,0.28659864,697.84,696.14,1.06864321]
[1735529188378,0.28659864,697.84,696.16,1.06864321]
[1735529190175,0.28659864,697.84,696.11,1.06864321]
[1735529191281,0.28659864,697.84,696.14,1.06864321]
[1735529192177,0.28659864,697.84,695.82,4.56344065]
[1735529192178,0.28659864,697.84,696.06,1.06864321]
[1735529193281,0.28659864,697.84,696.01,1.06864321]
[1735529193980,0.28659864,697.84,696.03,1.06864321]
[1735529195178,0.28659864,697.84,696.05,1.06864321]
[1735529197380,0.28659864,697.84,696.06,1.06864321]
[1735529197872,0.26403015,697.83,696.06,1.06864321]
[1735529198873,0.26403015,697.83,695.95,1.06864321]
[1735529199081,0.28659864,697.84,695.95,1.06864321]
[1735529199483,0.26401822,697.83,695.95,1.06864321]
[1735529199684,0.2640246,697.82,695.95,1.06864321]
[1735529199986,0.28659864,697.84,695.95,1.06864321]
[1735529200183,0.26402149,697.83,695.95,1.06864321]
[1735529200685,0.28659864,697.84,695.95,1.06864321]
[1735529201081,0.28659864,697.84,695.77,1.87073857]
[1735529201082,0.2640151,697.83,696.05,1.06864321]
[1735529201985,0.2640151,697.83,696.06,1.06864321]
[1735529202187,0.28659864,697.84,696.06,1.06864321]
[1735529203187,0.28659864,697.84,696.05,1.06864321]
[1735529203481,0.26402719,697.83,696.05,1.06864321]
[1735529204788,0.28659864,697.84,696.05,1.06864321]
[1735529204989,0.26403064,697.83,696.05,1.06864321]
[1735529205487,0.26403064,697.83,695.92,1.06864321]
[1735529205488,0.26403064,697.83,696.06,1.06864321]
[1735529207388,0.28659864,697.84,696.06,1.06864321]
[1735529207683,0.26402765,697.83,696.06,1.06864321]
[1735529207990,1.06522021,697.8,696.04,1.06864321]